fUSD/lending_fUSD_20240815
["ID","MTS","AMOUNT","RATE_DAILY","PERIOD"]
[335005750,1723729844345,-547.93212706,0.00011,2]
[335005751,1723729844357,-6206.83536634,0.00011,2]
[335005752,1723729844368,-1109.25964547,0.00011,2]
[335005753,1723729844379,-642.70249532,0.00011,2]
[335005754,1723729844390,-305.74999996,0.00011,2]
[335005755,1723729844401,-1503.0,0.00011,2]
[335005756,1723729844419,-242244.60235731,0.00011,2]
[335005757,1723729844435,-1299560.44544797,0.00011,2]
[335005758,1723729844445,-495.13548268,0.00011,2]
[335005760,1723729846267,-531.26864504,0.00010999,2]
[335005761,1723729846276,-1031.83635496,0.00011,2]
[335005762,1723729846288,-11873.24394749,0.00011,2]
[335005763,1723729846300,-297.63621753,0.00011,2]
[335005764,1723729846311,-335.30570427,0.00011,2]
[335005765,1723729846322,-4035.40666826,0.00011,2]
[335005766,1723729846337,-1432.81357698,0.00011,2]
[335005767,1723729846350,-692.17038355,0.00011,2]
[335005768,1723729846361,-34665.0926168,0.00011,2]
[335005769,1723729846373,-4424.73536465,0.00011,2]
[335005770,1723729846385,-677.57587675,0.00011,2]
[335005771,1723729846397,-1435.0,0.00011,2]
[335005772,1723729846492,-1208.0,0.00011,2]
[335005773,1723729846536,-15634.28166169,0.00011,2]
[335005775,1723729846547,-294.73,0.00011,2]
[335005868,1723730014272,372.2,8.541e-05,2]
[335005869,1723730087723,250.0,9.925e-05,2]
[335005870,1723730129598,311.38,9.922e-05,2]
[335005871,1723730144282,193.59,9.921e-05,2]
[335005872,1723730217987,7397.45,9.915e-05,2]
[335005873,1723730260789,-1000.0,0.00010493,2]
[335005874,1723730260815,-150.0,0.00010735,2]
[335005875,1723730260839,-150.0,0.00010739,2]
[335005876,1723730260865,-150.0,0.00010739,2]
[335005877,1723730260890,-150.0,0.0001074,2]
[335005878,1723730260913,-11702.0,0.0001074,2]
[335005879,1723730351965,280.53,9.918e-05,2]
[335005880,1723730410507,193.42,9.914e-05,2]
[335005881,1723730429331,227.82008585,9.914e-05,2]
[335005883,1723730508854,384.49,8.219e-05,2]
[335005884,1723730541134,16239.2033906,9.914e-05,2]
[335005885,1723730566452,18057.47786805,9.962e-05,2]
[335005886,1723730583769,606.74,9.903e-05,2]
[335005887,1723730733492,250.0,9.847e-05,2]
[335005888,1723730806981,245.12,9.83e-05,2]
[335005889,1723730902619,155.0,9.943e-05,2]
[335005909,1723731032329,-154.74,9.982e-05,2]
[335005910,1723731032339,-550.0,0.0001,2]
[335005911,1723731032349,-208.81982158,0.0001,2]
[335005912,1723731032358,-384.49,0.00010471,2]
[335005913,1723731032368,-150.0,0.00010726,2]
[335005914,1723731032378,-194.38440145,0.0001074,2]
[335005915,1723731032388,-150.0,0.00010742,2]
[335005916,1723731032398,-1193.74020052,0.00010742,2]
[335005917,1723731032410,-331.76990448,0.00010742,2]
[335005918,1723731032425,-784.34351086,0.00010742,2]
[335005919,1723731032442,-1299.333284,0.00010742,2]
[335005920,1723731032454,-2522.06617273,0.00010742,2]
[335005921,1723731032465,-1474.26692741,0.00010742,2]
[335005922,1723731032474,-499.99,0.00010742,2]
[335005923,1723731032484,-150.0,0.0001076,2]
[335005924,1723731032493,-150.0,0.00010763,2]
[335005925,1723731032503,-1500.0,0.00010764,2]
[335005926,1723731032512,-150.0,0.00010766,2]
[335005927,1723731032522,-150.0,0.00010768,2]
[335005928,1723731032531,-150.0,0.00010772,2]
[335005929,1723731032540,-150.0,0.00010777,2]
[335005930,1723731032550,-150.0,0.00010777,2]
[335005931,1723731032559,-150.0,0.00010779,2]
[335005932,1723731032568,-2668.28,0.0001078,2]
[335005933,1723731032577,-42.38863843,0.0001078,2]
[335005934,1723731032589,-3406.03390733,0.0001078,2]
[335005935,1723731032600,-202.94745424,0.0001078,2]
[335005936,1723731032609,-150.99,0.00010782,2]
[335005937,1723731032618,-197.45670583,0.00010799,2]
[335005938,1723731032627,-120.94823993,0.000108,2]
[335005939,1723731032637,-619.65174307,0.000108,2]
[335005940,1723731033966,-4543.691717,0.000108,2]
[335005941,1723731033976,-169.1306,0.000108,2]
[335005942,1723731033986,-421.13,0.000108,2]
[335005943,1723731033995,-150.0,0.00010801,2]
[335005944,1723731034005,-150.0,0.00010803,2]
[335005945,1723731034018,-150.0,0.00010805,2]
[335005946,1723731034028,-150.0,0.00010813,2]
[335005947,1723731034038,-949.31726959,0.00010839,2]
[335005948,1723731034050,-550.68273041,0.00010839,2]
[335005949,1723731034060,-415.53393428,0.00010842,2]
[335005950,1723731034072,-741.8811006,0.00010842,2]
[335005951,1723731034084,-413.20168533,0.00010842,2]
[335005952,1723731034093,-150.0,0.00010845,2]
[335005953,1723731034103,-150.0,0.00010848,2]
[335005954,1723731034113,-260.30207017,0.00010861,2]
[335005956,1723731034123,-150.0,0.00010864,2]
[335005957,1723731034133,-150.0,0.00010871,2]
[335005958,1723731034143,-150.0,0.00010873,2]
[335005959,1723731034152,-150.0,0.00010875,2]
[335005960,1723731034162,-150.0,0.00010877,2]
[335005961,1723731034172,-150.0,0.00010881,2]
[335005962,1723731034183,-3871.24728463,0.0001089,2]
[335005963,1723731034195,-1933.71559263,0.0001089,2]
[335005964,1723731034205,-1023.36512,0.0001089,2]
[335005965,1723731034215,-107.52593306,0.00010895,2]
[335005966,1723731034227,-42.47406694,0.00010895,2]
[335005967,1723731034242,-2816.00602695,0.00010899,2]
[335005968,1723731034442,-4399.7388,0.000109,2]
[335005969,1723731034453,-367.6557,0.000109,2]
[335005970,1723731034463,-71965.66307631,0.000109,2]
[335005971,1723731034541,-9978.66962938,0.000109,2]
[335005972,1723731034553,-5373.36897696,0.000109,2]
[335005973,1723731034565,-363.76455997,0.000109,2]
[335005974,1723731034577,-58720.12035738,0.000109,2]
[335005975,1723731034586,-334.9541,0.000109,2]
[335005976,1723731034596,-449.0828,0.000109,2]
[335005977,1723731034606,-4534.84459588,0.000109,2]
[335005978,1723731034615,-421.13,0.000109,2]
[335005979,1723731034625,-286.94285339,0.000109,2]
[335005980,1723731034635,-666.67460784,0.000109,2]
[335005981,1723731034645,-196.38206903,0.000109,2]
[335005982,1723731034655,-330.65568639,0.000109,2]
[335005983,1723731034665,-150.0,0.00010901,2]
[335005984,1723731034675,-150.0,0.0001091,2]
[335005985,1723731034688,-150.0,0.00010915,2]
[335005986,1723731034698,-150.0,0.0001093,2]
[335005987,1723731034708,-150.0,0.00010939,2]
[335005988,1723731034718,-1011.44,0.00010959,2]
[335005989,1723731034727,-250.0,0.00010959,2]
[335005990,1723731034737,-150.0,0.0001096,2]
[335005991,1723731034746,-150.0,0.00010969,2]
[335005992,1723731034756,-188.38963004,0.00010973,2]
[335005993,1723731034767,-150.0,0.00010983,2]
[335005994,1723731034776,-150.0,0.00010983,2]
[335005995,1723731034786,-415.01059966,0.00010989,2]
[335005996,1723731034795,-840.85981544,0.0001099,2]
[335005997,1723731034805,-840.85981544,0.0001099,2]
[335005998,1723731034814,-840.85981544,0.0001099,2]
[335005999,1723731034824,-335.61185874,0.00010997,2]
[335006000,1723731034834,-295.44184782,0.00010999,2]
[335006001,1723731034843,-150.01,0.00010999,2]
[335006002,1723731034853,-500.0,0.00010999,2]
[335006003,1723731034863,-581.6414145,0.00010999,2]
[335006004,1723731034872,-334.24242078,0.00010999,2]
[335006005,1723731034882,-500.0,0.00010999,2]
[335006006,1723731034891,-500.0,0.00010999,2]
[335006007,1723731034901,-500.0,0.00010999,2]
[335006008,1723731034911,-259.36026897,0.00010999,2]
[335006009,1723731034923,-1257.0,0.00011,2]
[335006010,1723731034934,-226364.09773682,0.00011,2]
[335006011,1723731034945,-5865.45045287,0.00011,2]
[335006012,1723731034956,-636.89293725,0.00011,2]
[335006014,1723731038519,-250.485,0.00011,2]
[335006015,1723731038531,-10452.6496705,0.00011,2]
[335006016,1723731038563,-902.63081299,0.00011,2]
[335006017,1723731038617,-576.87446552,0.00011,2]
[335006018,1723731038629,-918.803945,0.00011,2]
[335006019,1723731038751,-42538.91908309,0.00011,2]
[335006020,1723731038761,-740058.9521325,0.00011,2]
[335006021,1723731038773,-119324.40502012,0.00011,2]
[335006022,1723731038902,-2017.91622755,0.00011,2]
[335006063,1723731040364,-435.34269515,0.00011,2]
[335006064,1723731040376,-873.9664238,0.00011,2]
[335006065,1723731040479,-198200.30956167,0.00011,2]
[335006066,1723731040490,-1593.55023297,0.00011,2]
[335006067,1723731040502,-2268.5,0.00011,2]
[335006068,1723731040601,-9995.69854587,0.00011,2]
[335006069,1723731040613,-2053.05735365,0.00011,2]
[335006070,1723731040624,-1140.8915915,0.00011,2]
[335006071,1723731040635,-1425.09876976,0.00011,2]
[335006072,1723731040646,-5169.12813013,0.00011,2]
[335006073,1723731040656,-368.15194046,0.00011,2]
[335006074,1723731040667,-532.14488286,0.00011,2]
[335006075,1723731040678,-532.12,0.00011,2]
[335006076,1723731040691,-123351.80807223,0.00011,2]
[335006077,1723731040703,-1308.53482217,0.00011,2]
[335006078,1723731040713,-1007.52312096,0.00011,2]
[335006089,1723731043412,-1082.0,0.00011,2]
[335006091,1723731043422,-220.1840501,0.00011,2]
[335006096,1723731044357,-13779.17179148,0.00011,2]
[335006097,1723731044368,-1720.3100005,0.00011,2]
[335006098,1723731044379,-6662.113764,0.00011,2]
[335006099,1723731044391,-328.04999985,0.00011,2]
[335006100,1723731044409,-122209.74019492,0.00011,2]
[335006101,1723731044419,-646656.74581744,0.00011,2]
[335006102,1723731044430,-359.73856219,0.00011,2]
[335006103,1723731044443,-5461.22,0.00011,2]
[335006104,1723731044454,-7300.0,0.00011,2]
[335006105,1723731044466,-29741.84051448,0.00011,2]
[335006106,1723731044482,-5420.415,0.00011,2]
[335006110,1723731046431,-2985.11727615,0.00011,2]
[335006111,1723731046446,-65031.51335681,0.00011,2]
[335006112,1723731046456,-500.0,0.00011,2]
[335006113,1723731046466,-500.0,0.00011,2]
[335006114,1723731046476,-500.0,0.00011,2]
[335006115,1723731046486,-500.0,0.00011,2]
[335006116,1723731046495,-500.0,0.00011,2]
[335006117,1723731046505,-193.77879366,0.00011,2]
[335006118,1723731046521,-306.22120634,0.00011,2]
[335006119,1723731046531,-500.0,0.00011,2]
[335006120,1723731046541,-500.0,0.00011,2]
[335006121,1723731046551,-500.0,0.00011,2]
[335006122,1723731046560,-483.69439354,0.00011,2]
[335006123,1723731046572,-16.30560646,0.00011,2]
[335006124,1723731046581,-500.0,0.00011,2]
[335006125,1723731046591,-500.0,0.00011,2]
[335006126,1723731046600,-500.0,0.00011,2]
[335006127,1723731046610,-500.0,0.00011,2]
[335006128,1723731046619,-500.0,0.00011,2]
[335006129,1723731046630,-785.0,0.00011,2]
[335006130,1723731046639,-2645.29439353,0.00011,2]
[335006131,1723731046651,-64930.94163265,0.00011,2]
[335006132,1723731046662,-792.73224283,0.00011,2]
[335006133,1723731046674,-1470.51803953,0.00011,2]
[335006134,1723731046687,-2989.4169,0.00011,2]
[335006221,1723731092236,9703.20838331,9.943e-05,2]
[335006222,1723731168857,854.49,9.831e-05,2]
[335006223,1723731268089,1274.99398232,9.831e-05,2]
[335006224,1723731516664,463.18763437,8.219e-05,2]
[335006225,1723731516688,5.52236563,8.219e-05,2]
[335006226,1723731612533,569.09120069,8.219e-05,2]
[335006227,1723731772691,-653.7077551,0.0001,2]
[335006228,1723731772718,-3506.6322449,0.0001013,2]
[335006229,1723731781905,1000.0,9.975e-05,2]
[335006230,1723731823956,250.0,9.93e-05,2]
[335006231,1723731839568,-500.0,9.986e-05,2]
[335006232,1723731839595,-272.34,0.00010042,2]
[335006233,1723731883437,-154.87,0.00010013,2]
[335006234,1723731883463,-10534.15307555,0.00010026,2]
[335006235,1723731883490,-139.7807,0.00010042,2]
[335006236,1723731883516,-181.85162494,0.00010042,2]
[335006237,1723731883545,-300.0,0.00010096,2]
[335006238,1723731883571,-11968.89826665,0.0001013,2]
[335006239,1723731883600,-2249.7077551,0.0001013,2]
[335006240,1723731883625,-150.0,0.00010142,2]
[335006241,1723731883650,-72321.26712571,0.00010143,5]
[335006245,1723732133554,471.66,8.219e-05,2]
[335006254,1723732202926,156.65999809,9.905e-05,2]
[335006255,1723732207892,156.65999809,9.909e-05,2]
[335006272,1723732231685,-150.0,9.999e-05,2]
[335006273,1723732231696,-403.35359507,9.999e-05,2]
[335006274,1723732231709,-1471.63330672,0.0001,2]
[335006275,1723732231719,-190541.224179,0.0001,2]
[335006276,1723732231730,-156.65999809,0.0001,2]
[335006277,1723732231741,-328.27252306,0.00010009,2]
[335006278,1723732231751,-155.17072618,0.00010026,2]
[335006279,1723732231761,-493.63885733,0.00010026,2]
[335006280,1723732231772,-155.0,0.00010026,2]
[335006281,1723732231783,-210.6709452,0.00010026,2]
[335006282,1723732231794,-285.4682,0.00010043,2]
[335006283,1723732231804,-2342.45587798,0.00010097,2]
[335006284,1723732231814,-27205.26142224,0.00010143,5]
[335006285,1723732231825,-471.66,0.00010469,2]
[335006286,1723732231836,-400.0,0.000105,3]
[335006287,1723732231848,-370.75591567,0.00010505,2]
[335006288,1723732231861,-800.0,0.000106,3]
[335006289,1723732231871,-999.99,0.00010615,2]
[335006290,1723732231881,-5691.02,0.00010615,2]
[335006291,1723732231891,-18054.39,0.00010699,2]
[335006292,1723732231902,-1200.0,0.000107,3]
[335006293,1723732231913,-364.3739,0.00010715,2]
[335006294,1723732231923,-705.5862,0.00010715,2]
[335006295,1723732231933,-4261.1099,0.00010715,2]
[335006296,1723732232168,-5318.4156,0.00010715,2]
[335006297,1723732232189,-2962.7443,0.00010715,2]
[335006298,1723732232202,-2971.4468,0.00010715,2]
[335006299,1723732232212,-215.26072699,0.00010754,2]
[335006300,1723732232222,-161.18,0.00010754,2]
[335006301,1723732232231,-1122.66,0.00010754,2]
[335006302,1723732232240,-5498.878,0.000108,2]
[335006303,1723732232250,-1600.0,0.000108,3]
[335006304,1723732232259,-499.99,0.00010815,2]
[335006305,1723732232268,-2183.16506,0.0001089,2]
[335006306,1723732232279,-499.36766,0.000109,2]
[335006307,1723732232288,-4617.0147,0.000109,2]
[335006308,1723732232298,-1428.32,0.000109,2]
[335006309,1723732232307,-835.58,0.000109,2]
[335006310,1723732232317,-835.58,0.000109,2]
[335006311,1723732232326,-421.13,0.000109,2]
[335006312,1723732232336,-834.94,0.000109,2]
[335006313,1723732232345,-421.13,0.000109,2]
[335006314,1723732232355,-152.82182586,0.000109,2]
[335006315,1723732232365,-1023.36513,0.000109,2]
[335006316,1723732232374,-2100.0,0.000109,3]
[335006317,1723732232383,-216.435561,0.000109,2]
[335006318,1723732232392,-444.44973856,0.000109,2]
[335006319,1723732232401,-287.049995,0.000109,2]
[335006320,1723732232410,-467.91858638,0.000109,2]
[335006321,1723732232419,-241.94907099,0.000109,2]
[335006322,1723732232428,-1023.36512,0.0001094,2]
[335006323,1723732232437,-2000.0,0.00010959,2]
[335006324,1723732232447,-250.0,0.00010959,2]
[335006325,1723732232456,-1023.36513,0.0001098,2]
[335006326,1723732232465,-420.42990772,0.0001099,2]
[335006327,1723732232474,-420.42990772,0.0001099,2]
[335006328,1723732232483,-420.42990772,0.0001099,2]
[335006329,1723732232493,-768.2082245,0.00010995,2]
[335006330,1723732232502,-1736.4309146,0.00010995,2]
[335006331,1723732232511,-1957.67975466,0.00010997,2]
[335006332,1723732232520,-206.17458569,0.00010999,2]
[335006333,1723732232529,-1157.0,0.00011,2]
[335006334,1723732232538,-94397.46189505,0.00011,2]
[335006335,1723732232550,-1746.55062526,0.00011,2]
[335006336,1723732232561,-3504.07490294,0.00011,2]
[335006337,1723732232572,-237672.00064738,0.00011,2]
[335006338,1723732232580,-766679.42901229,0.00011,2]
[335006339,1723732232596,-506.12459665,0.00011,2]
[335006354,1723732237781,-1038.0,0.00011,2]
[335006355,1723732237791,-1026.52335986,0.00011,2]
[335006356,1723732237802,-1004.98356176,0.00011,2]
[335006357,1723732237814,-4253.7425035,0.00011,2]
[335006358,1723732237914,-3846.94404154,0.00011,2]
[335006359,1723732238138,-4382.7322494,0.00011,2]
[335006360,1723732238149,-3113.43372609,0.00011,2]
[335006361,1723732238160,-585.70767439,0.00011,2]
[335006362,1723732238171,-468.87,0.00011,2]
[335006370,1723732239843,-7562.59452622,0.00011,2]
[335006371,1723732239853,-835.58,0.00011,2]
[335006372,1723732239863,-172593.52656846,0.00011,2]
[335006373,1723732239935,-2264.48904993,0.00011,2]
[335006374,1723732239946,-1393.49202845,0.00011,2]
[335006377,1723732239994,-1840.56373534,0.00011,2]
[335006379,1723732240006,-1835.35962007,0.00011,2]
[335006381,1723732240017,-265.89,0.00011,2]
[335006384,1723732240028,-4223.55861747,0.00011,2]
[335006386,1723732240039,-4019.09127962,0.00011,2]
[335006388,1723732240049,-315.6,0.00011,2]
[335006390,1723732240064,-1186.31371876,0.00011,2]
[335006421,1723732245631,-941.0,0.00011,2]
[335006422,1723732245641,-550.21339972,0.00011,2]
[335006423,1723732245851,-287.049995,0.00011,2]
[335006425,1723732293356,525.39,9.932e-05,2]
[335006428,1723732612037,474.62,8.219e-05,2]
[335006429,1723732632552,6390.3964375,9.927e-05,2]
[335006430,1723732632573,2087.3335625,9.927e-05,2]
[335006431,1723732679195,169.12,9.914e-05,2]
[335006432,1723732684242,3070.88521436,9.962e-05,2]
[335006433,1723732755761,1680.5,9.909e-05,2]
[335006434,1723732768514,800.0,9.942e-05,2]
[335006435,1723732799165,580.15,9.918e-05,2]
[335006436,1723732838227,245.17,9.942e-05,2]
[335006437,1723732966096,250.0,9.891e-05,2]
[335006438,1723733038921,498.7,9.922e-05,2]
[335006439,1723733057606,169.01,9.973e-05,2]
[335006440,1723733175612,449.13122314,8.219e-05,2]
[335006441,1723733175635,24.30877686,8.219e-05,2]
[335006442,1723733231240,-200.0,0.0001,2]
[335006443,1723733231266,-227.07,0.00010276,2]
[335006444,1723733231290,-473.44,0.00010475,2]
[335006445,1723733231313,-3284.640274,0.00010576,2]
[335006446,1723733231336,-5254.28041541,0.00010629,2]
[335006447,1723733231358,-150.0,0.0001063,2]
[335006448,1723733231381,-1509.2153,0.00010658,2]
[335006449,1723733231403,-155.0,0.00010699,2]
[335006450,1723733231428,-150.0,0.00010729,2]
[335006451,1723733231452,-150.0,0.0001073,2]
[335006452,1723733231476,-418.5,0.00010758,2]
[335006453,1723733231498,-499.99,0.00010758,2]
[335006454,1723733231520,-1500.0,0.0001077,2]
[335006455,1723733231542,-300.0,0.00010788,2]
[335006456,1723733231566,-150.0,0.00010789,2]
[335006457,1723733231591,-150.0,0.00010797,2]
[335006458,1723733231615,-5427.86401059,0.000108,2]
[335006459,1723733232333,-7405.68971848,0.000108,2]
[335006460,1723733232361,-150.0,0.000108,2]
[335006461,1723733232389,-150.0,0.00010821,2]
[335006462,1723733232413,-150.0,0.00010857,2]
[335006463,1723733232437,-150.0,0.00010899,2]
[335006464,1723733232464,-168.55731249,0.000109,2]
[335006465,1723733232486,-1005.0,0.000109,2]
[335006466,1723733232509,-1000.0,0.000109,2]
[335006467,1723733232532,-161.29938066,0.000109,2]
[335006468,1723733232554,-1371.64874251,0.000109,2]
[335006469,1723733232577,-187.04746482,0.000109,2]
[335006470,1723733232599,-346.52630541,0.000109,2]
[335006471,1723733232621,-1500.0,0.00010906,2]
[335006472,1723733232645,-150.0,0.00010948,2]
[335006473,1723733232667,-2000.0,0.00010959,2]
[335006474,1723733232689,-250.0,0.00010959,2]
[335006475,1723733232716,-184.78,0.00010959,2]
[335006476,1723733232746,-150.0,0.00010979,2]
[335006477,1723733232769,-905.094,0.00010979,2]
[335006478,1723733232792,-1163.6586426,0.00010997,2]
[335006479,1723733232815,-1450.69843303,0.00010997,2]
[335006480,1723733232845,-3855.89971447,0.00010997,2]
[335006481,1723733232868,-11774.8837399,0.00010997,2]
[335006482,1723733232890,-443.2460541,0.00010997,2]
[335006483,1723733232913,-468.1844488,0.00010997,2]
[335006484,1723733232937,-150.01,0.00010999,2]
[335006485,1723733232965,-897.0,0.00011,2]
[335006486,1723733232993,-2410.77604273,0.00011,2]
[335006487,1723733233199,-20000.0,0.00011,2]
[335006488,1723733233414,-20000.0,0.00011,2]
[335006489,1723733251344,-155.0,0.00010566,2]
[335006490,1723733251367,-283.92669534,0.000109,2]
[335006491,1723733251393,-19561.07330466,0.00011,2]
[335006492,1723733265497,-20000.0,0.00011,2]
[335006493,1723733266429,-20000.0,0.00011,2]
[335006494,1723733267224,-20000.0,0.00011,2]
[335006495,1723733273702,-20000.0,0.00011,2]
[335006496,1723733297935,-1969.99857704,0.000109,2]
[335006497,1723733297966,-300.0,0.00010999,2]
[335006498,1723733297995,-300.0,0.00010999,2]
[335006499,1723733298029,-150.0,0.00010999,2]
[335006500,1723733298057,-17280.00142296,0.00011,2]
[335006509,1723733431739,-594.67731106,0.00010646,2]
[335006510,1723733431751,-251.35461498,0.00010646,2]
[335006511,1723733431763,-2458.09501996,0.00010646,2]
[335006512,1723733431772,-2834.53014604,0.000107,2]
[335006513,1723733431781,-300.0,0.00010799,2]
[335006514,1723733431791,-300.0,0.00010799,2]
[335006515,1723733431800,-12833.55372907,0.000108,2]
[335006516,1723733431810,-50000.0,0.000108,2]
[335006517,1723733431819,-187.04746481,0.000109,2]
[335006518,1723733431829,-3293.00880622,0.000109,2]
[335006519,1723733431838,-1370.39939516,0.000109,2]
[335006520,1723733431847,-1313.3323847,0.000109,2]
[335006521,1723733431857,-804.0,0.00011,2]
[335006522,1723733431866,-113312.65031237,0.00011,2]
[335006523,1723733431875,-1526725.3817631,0.00011,2]
[335006524,1723733431886,-966.7026,0.00011,2]
[335006525,1723733431905,-3348.64538502,0.00011,2]
[335006537,1723733432614,-473.12952535,0.00011,2]
[335006538,1723733432626,-2416.0,0.00011,2]
[335006539,1723733432637,-4693.95357535,0.00011,2]
[335006540,1723733432648,-727.71154327,0.00011,2]
[335006541,1723733432659,-403.74979045,0.00011,2]
[335006542,1723733432675,-2000.0,0.00011,2]
[335006543,1723733432686,-1284.35585131,0.00011,2]
[335006544,1723733432697,-876.72999162,0.00011,2]
[335006545,1723733432708,-2194.55656055,0.00011,2]
[335006549,1723733438007,-2328.69054185,0.000109,2]
[335006550,1723733438019,-1346.8792667,0.000109,2]
[335006551,1723733438089,-1575.43818511,0.000109,2]
[335006552,1723733438101,-4985.0801,0.000109,2]
[335006553,1723733438291,-5251.53140634,0.000109,2]
[335006554,1723733438301,-724.0,0.00011,2]
[335006555,1723733438310,-1545.10334992,0.00011,2]
[335006556,1723733438321,-297.48711185,0.00011,2]
[335006557,1723733438435,-1270.89616337,0.00011,2]
[335006569,1723733440261,-544.68474794,0.00011,2]
[335006570,1723733440273,-1786.16302816,0.00011,2]
[335006571,1723733440285,-297.882,0.00011,2]
[335006581,1723733442887,-2742.0,0.00010899,2]
[335006582,1723733442897,-153.99,0.00010959,2]
[335006583,1723733442906,-5583.64585047,0.00011,2]
[335006592,1723733444807,-1167.71591074,0.00011,2]
[335006593,1723733444819,-1540.0000006,0.00011,2]
[335006594,1723733444830,-6006.0,0.00011,2]
[335006595,1723733444841,-12033.31896,0.00011,2]
[335006611,1723733445890,-648.45221928,0.00011,2]
[335006612,1723733445957,-4.54778072,0.00011,2]
[335006613,1723733445966,-6236.49525964,0.00011,2]
[335006614,1723733446031,-260.0,0.00011,2]
[335006615,1723733446103,-1894.21476199,0.00011,2]
[335006647,1723733449877,1000.0,9.971e-05,2]
[335006648,1723733477036,250.0,9.971e-05,2]
[335006649,1723733519371,155.0,9.971e-05,2]
[335006650,1723733540072,-12269.98580807,0.000108,2]
[335006651,1723733540097,-1989.86507,0.0001089,2]
[335006652,1723733540123,-346.5263054,0.000109,2]
[335006653,1723733540147,-157.65936862,0.000109,2]
[335006654,1723733540170,-250.0,0.00010959,2]
[335006655,1723733540195,-769.96,0.00010959,2]
[335006656,1723733540220,-4216.00344791,0.00010959,2]
[335006657,1723733541058,-10449.5657387,0.00010959,2]
[335006658,1723733541081,-150.0,0.00010999,2]
[335006659,1723733541109,-150.01,0.00010999,2]
[335006660,1723733541132,-805.0,0.00011,2]
[335006661,1723733541159,-8445.4242613,0.00011,2]
[335006662,1723733541523,-20000.0,0.00011,2]
[335006663,1723733561451,-3202.39679254,0.000109,2]
[335006664,1723733561475,-2971.4447,0.000109,2]
[335006665,1723733561498,-475.94973023,0.000109,2]
[335006666,1723733561523,-818.0,0.00011,2]
[335006667,1723733561551,-12532.20877723,0.00011,2]
[335006668,1723733562042,-20000.0,0.00011,2]
[335006669,1723733563506,-20000.0,0.00011,2]
[335006670,1723733564377,-20000.0,0.00011,2]
[335006671,1723733565064,-20000.0,0.00011,2]
[335006672,1723733565937,-6140.19801427,0.00011,2]
[335006673,1723733565965,-13859.80198573,0.00011,2]
[335006674,1723733567340,-20000.0,0.00011,2]
[335006675,1723733582514,-300.0,0.00010999,2]
[335006676,1723733582540,-731.0,0.00011,2]
[335006677,1723733582567,-10602.9982,0.00011,2]
[335006680,1723733947800,2500.0,0.00025,60]
[335006681,1723734431653,150.0,9.888e-05,2]
[335006682,1723734526499,257.04102161,9.888e-05,2]
[335006685,1723734567352,509.90429173,9.888e-05,2]
[335006689,1723734572855,693.45613464,9.888e-05,2]
[335006698,1723734632087,-199.40325006,0.00010799,2]
[335006699,1723734632097,-186.3894,0.000108,2]
[335006700,1723734632107,-155.0,0.00010861,2]
[335006701,1723734632124,-317.99027494,0.0001089,2]
[335006702,1723734632136,-355.41834579,0.0001089,2]
[335006703,1723734632438,-1.602e-05,0.0001089,2]
[335006704,1723734632450,-574.91433,0.0001089,2]
[335006705,1723734633562,-454.79730325,0.0001089,2]
[335006706,1723734633572,-150.0,0.00010899,2]
[335006707,1723734633581,-300.0,0.00010899,2]
[335006708,1723734633590,-300.0,0.00010899,2]
[335006709,1723734633599,-560.50303821,0.000109,2]
[335006710,1723734633610,-1127.61331614,0.000109,2]